Cogmind - Beta 16.1 @@@ ROGUE MODE // 2026.03.21 @ 22:35:39 // AFD2018/Launchers Player: Minty Result: Self-destructed Performance ------------- Evolutions (4) 2000 Regions Visited (11) 2200 Robots Destroyed (63) 315 Value Destroyed (1950) 1950 Prototype IDs (31) 620 Alien Tech Used (0) 0 Bonus (500) 500 TOTAL SCORE: 7585 Bonus ------- Entered Garrisons 200 Aligned with FarCom 300 Cogmind --------- Core Integrity 32/850 Matter 16/300 Energy 100/100 System Corruption 1% Temperature Cool (0) Movement Core (50) Location -6/Factory Parts ------- > --- POWER (1) -------- (None) > --- PROPULSION (5) --- (None) > --- UTILITY (6) ------ (None) > --- WEAPON (3) ------- (None) > --- INVENTORY (5) ---- Medium Matter Pod (0) Rocket Array Long-range Missile Launcher Long-range Missile Launcher Long-range Missile Launcher Peak State ------------ > --- POWER ------------ Light Nuclear Core > --- PROPULSION ------- Aluminum Leg Aluminum Leg > --- UTILITY ---------- Small Storage Unit Shock Absorption System > --- WEAPON ----------- Mini Grenade Launcher Mini Grenade Launcher > --- INVENTORY -------- EMP Blaster Shock Bomb Launcher Shock Bomb Launcher Rocket Launcher Mini Grenade Launcher [Rating: 15] Favorites ----------- Power Light Nuclear Core Engine Backup Power I Power Core Light Nuclear Core Propulsion Aluminum Leg Treads Medium Treads Leg Aluminum Leg Wheel Wheel Flight Unit Flight Unit Utility Shock Absorption System Device Shock Absorption System Storage Small Storage Unit Protection Backup Plating I Weapon Grenade Launcher Launcher Grenade Launcher Build | -11 -10 -10 -10 -9 -8 -8 -8 -7 -7 -7 -6 ------- Run | Yrd Mat Min Exi Min Mat Gar Mat Fac Low Low Fac Slots Evolved 8 | . . . . . 4 . . 2 . . 2 Power . | . . . . . . . . . . . . Propulsion 3 | . . . . . 1 . . 1 . . 1 Utility 4 | . . . . . 3 . . 1 . . . Weapon 1 | . . . . . . . . . . . 1 Parts Attached 46 | . 1 6 1 2 10 3 2 12 1 1 7 Power 6 | . . 2 . . 2 . 1 . . 1 . Engine 2 | . . 1 . . 1 . . . . . . Core 4 | . . 1 . . 1 . 1 . . 1 . Reactor . | . . . . . . . . . . . . Propulsion 13 | . 1 2 . . 2 2 . 3 . . 3 Treads 1 | . . . . . . . . . . . 1 Leg 8 | . 1 2 . . 1 . . 3 . . 1 Wheel 1 | . . . . . 1 . . . . . . Hover . | . . . . . . . . . . . . Flight 3 | . . . . . . 2 . . . . 1 Utility 5 | . . 1 . . 2 . . . 1 . 1 Device 2 | . . 1 . . . . . . 1 . . Storage 2 | . . . . . 1 . . . . . 1 Processor . | . . . . . . . . . . . . Hackware . | . . . . . . . . . . . . Protection 1 | . . . . . 1 . . . . . . Artifact . | . . . . . . . . . . . . Weapon 22 | . . 1 1 2 4 1 1 9 . . 3 Energy Gun . | . . . . . . . . . . . . Energy Cannon . | . . . . . . . . . . . . Ballistic Gun . | . . . . . . . . . . . . Ballistic Cannon . | . . . . . . . . . . . . Launcher 22 | . . 1 1 2 4 1 1 9 . . 3 Special Weapon . | . . . . . . . . . . . . Impact Weapon . | . . . . . . . . . . . . Slashing Weapon . | . . . . . . . . . . . . Piercing Weapon . | . . . . . . . . . . . . Special Melee Weapon . | . . . . . . . . . . . . Unidentified Prototypes 5 | . . . . . 1 . . 2 . . 2 Parts Lost 27 | . . . . . 11 1 1 8 1 1 4 Power 5 | . . . . . 3 . 1 1 . . . Propulsion 11 | . . . . . 3 . . 4 . 1 3 Utility 4 | . . . . . 2 . . 1 1 . . Weapon 7 | . . . . . 3 1 . 2 . . 1 Highest Loss Streak 6 | . . . . . 6 6 1 6 1 1 2 To Critical Strikes . | . . . . . . . . . . . . Average Backups 4 | 5 5 5 5 5 5 4 5 4 4 4 4 Power . | . . . . . . . . . . . . Propulsion . | . . . . . . . . . . . . Utility . | . . . . . . . . . . . . Weapon 4 | 5 5 5 5 5 5 4 5 4 4 4 4 Tool/Special . | . . . . . . . . . . . . Unused Backups 20 | . 2 . . 2 6 2 . 1 . . 7 Power . | . . . . . . . . . . . . Propulsion . | . . . . . . . . . . . . Utility . | . . . . . . . . . . . . Weapon 20 | . 2 . . 2 6 2 . 1 . . 7 Tool/Special . | . . . . . . . . . . . . Average Slot Usage (%) 42 | . 33 59 85 85 42 5 27 18 8 7 4 Core 5 | . . 4 14 14 5 . 2 . . . . Leg 14 | . 5 20 28 28 12 . . 7 7 3 . Flight 1 | . . . . . . 4 18 3 . . . Device 5 | . . 5 14 14 4 . . . . . . Launcher 15 | . 28 28 28 28 16 1 6 6 . 3 2 Peak Build Rating 15 | 2 3 11 11 13 15 4 8 12 8 7 8 Average Rating 6 | 2 2 6 11 11 10 2 5 6 3 4 4 On Entrance 5 | 2 2 3 11 11 13 3 3 5 3 3 5 Avg Prop Armor Cover (%) 31 | . . . . . 22 . . 38 29 . 30 Naked Turns 244 | . . . . . . 35 . 69 . 4 136 Heaviest Build 17 | 6 6 14 14 14 17 6 6 8 1 5 7 Greatest Support 20 | 3 10 20 20 20 20 8 8 10 3 3 15 Greatest Overweight (x) 2 | 1 1 . . . 2 1 . 1 . 1 1 Average Overweight (x) . | 1 . . . . . . . . . . . Largest Inventory Capacity 8 | 5 5 5 5 5 8 5 5 5 5 5 5 Average Capacity 5 | 5 5 5 5 5 5 5 5 5 5 5 5 Most Carried 7 | 5 5 5 5 5 7 5 5 5 5 5 5 Average Carried 4 | 5 5 5 5 5 5 4 5 4 4 4 4 Final Capacity 5 | 5 5 5 5 5 5 5 5 5 5 5 5 Final Carried 5 | 5 5 5 5 5 5 5 5 5 5 5 5 Class Distribution -------------------- 61% | Mutant 38% | Scavenger-Mutant Dominant Class ---------------- Mutant | -10/Materials Mutant | -10/Mines Scavenger-Mutant | -10/Exiles Scavenger-Mutant | -9/Mines Scavenger-Mutant | -8/Materials Mutant | -8/Garrison Mutant | -8/Materials Mutant | -7/Factory Mutant | -7/Lower Caves Mutant | -7/Lower Caves Mutant | -6/Factory Resources | -11 -10 -10 -10 -9 -8 -8 -8 -7 -7 -7 -6 ----------- Run | Yrd Mat Min Exi Min Mat Gar Mat Fac Low Low Fac Matter Collected 1053 | . 30 252 . 45 121 19 43 215 254 . 74 Remotely 5 | . . . . . . . . . 5 . . Salvage Created 1428 | . 5 11 . 152 382 20 70 303 206 25 254 Parts 67 | . . . . 7 22 4 1 15 3 1 14 Haulers Intercepted 2 | . . . . . 1 . . . . . 1 Recyclers Shooed 2 | . . . . . . . . 1 . . 1 Parts Field Recycled . | . . . . . . . . . . . . Retrieved Matter . | . . . . . . . . . . . . Parts Self-Destructed 1 | . . . . . . . . . 1 . . Prevented . | . . . . . . . . . . . . Parts Restored . | . . . . . . . . . . . . Kills | -11 -10 -10 -10 -9 -8 -8 -8 -7 -7 -7 -6 ------- Run | Yrd Mat Min Exi Min Mat Gar Mat Fac Low Low Fac Combat Hostiles Destroyed 45 | . 1 . . 6 10 4 2 6 6 3 7 Melee 1 | . . . . . . . . . . . 1 AOE 44 | . 1 . . 6 10 4 2 6 6 3 6 Classes Destroyed 12 | . 1 . . 4 5 . 1 1 . . . Worker 5 | . . . . 1 2 . . 1 . . 1 Builder 6 | . . . . . 2 . . 1 . . 3 Tunneler 3 | . . . . 1 1 . . . . . 1 Hauler 2 | . . . . . 1 . . . . . 1 Recycler 1 | . . . . . 1 . . . . . . Operator 1 | . . . . . . . . 1 . . . Swarmer 13 | . 1 . . . 4 4 . . . 3 1 Grunt 20 | . . . . 4 2 . . 6 5 . 3 Brawler 2 | . . . . 2 . . . . . . . Duelist 3 | . . . . . . . 1 . 1 . 1 Sentry 3 | . . . . . 3 . . . . . . Hunter 4 | . . . . . 1 . 1 . . . 2 Best Kill Streak 6 | . 1 . . 5 6 4 2 3 4 3 5 Combat Bots Only 5 | . 1 . . 3 4 4 2 3 4 3 5 Max Kills in Single Turn 4 | . 1 . . 3 4 3 1 2 3 1 3 Gunslinging . | . . . . . . . . . . . . Exploded 3 | . 1 . . 2 3 3 1 2 3 1 3 Melee 1 | . . . . . . . . . . . 1 Uniques/NPCs Destroyed . | . . . . . . . . . . . . Combat | -11 -10 -10 -10 -9 -8 -8 -8 -7 -7 -7 -6 -------- Run | Yrd Mat Min Exi Min Mat Gar Mat Fac Low Low Fac Hostile Shots Fired 334 | . 11 . . 24 79 5 16 82 6 9 102 Missed 126 | . 3 . . 5 20 3 10 37 3 2 43 Hits 208 | . 8 . . 19 59 2 6 45 3 7 59 Melee 2 | . . . . . . . . . . . 2 Projectile 206 | . 8 . . 19 59 2 6 45 3 7 57 Critical Strikes 12 | . . . . . 4 . 2 4 1 . 1 Damage Taken 3830 | . 72 . . 207 1071 52 99 993 119 128 1089 Core 2038 | . 55 . . 24 420 17 30 558 57 59 818 Absorbed by Shields . | . . . . . . . . . . . . Regen/Repaired (Parts) 72 | . . . . . . . . . . . 72 Core Remaining (%) 46 | 100 . . . 68 . . 15 . . 3 . Volleys Fired 59 | . 1 . . 5 13 4 7 11 4 3 11 Largest 2 | . 2 . . 2 2 1 1 2 1 1 1 Hottest 72 | . 60 . . 60 72 36 30 39 45 36 45 Shots Fired 71 | . 2 . . 9 19 4 7 12 4 3 11 Gun . | . . . . . . . . . . . . Cannon . | . . . . . . . . . . . . Launcher 71 | . 2 . . 9 19 4 7 12 4 3 11 Special . | . . . . . . . . . . . . Kinetic . | . . . . . . . . . . . . Thermal . | . . . . . . . . . . . . Explosive 71 | . 2 . . 9 19 4 7 12 4 3 11 Electromagnetic . | . . . . . . . . . . . . Robot Hit Streak 9 | . . . . 6 9 1 2 3 8 3 5 Robot Miss Streak 4 | . . . . . 1 2 1 2 1 . 4 Penetration Max . | . . . . . . . . . . . . Secondary Targets . | . . . . . . . . . . . . Shots Hit Robots 38 | . . . . 6 9 1 4 4 3 3 8 Core Hits 143 | . 1 1 . 16 28 4 7 21 22 3 40 Critical Kills . | . . . . . . . . . . . . Critical Parts Destroyed . | . . . . . . . . . . . . Critical Strikes . | . . . . . . . . . . . . Melee Attacks . | . . . . . . . . . . . . Impact . | . . . . . . . . . . . . Slashing . | . . . . . . . . . . . . Piercing . | . . . . . . . . . . . . Sneak Attacks . | . . . . . . . . . . . . Combat Hostiles . | . . . . . . . . . . . . Follow-up Attacks . | . . . . . . . . . . . . Damage Inflicted 6279 | . 46 12 . 529 1128 211 269 1080 680 308 2016 Guns . | . . . . . . . . . . . . Cannons 11 | . . . . . . . . 11 . . . Explosions 6137 | . 45 . . 474 1127 211 269 1069 680 308 1954 Melee . | . . . . . . . . . . . . Ramming 131 | . 1 12 . 55 1 . . . . . 62 Kinetic . | . . . . . . . . . . . . Thermal 649 | . . . . . . . . . . . 649 Explosive 5389 | . 45 . . 474 1127 211 269 970 680 308 1305 Electromagnetic 99 | . . . . . . . . 99 . . . Impact 11 | . . . . . . . . 11 . . . Slashing . | . . . . . . . . . . . . Piercing . | . . . . . . . . . . . . Highest Corruption 1 | . . . . . 1 1 1 . . . 1 Average Corruption 1 | . . . . . 1 1 1 . . . 1 Corruption Purged . | . . . . . . . . . . . . Corruption Blocked . | . . . . . . . . . . . . Overload Shots . | . . . . . . . . . . . . Overflow Damage 398 | . . . . . 58 5 . 105 1 57 172 Projectiles . | . . . . . . . . . . . . Explosions 398 | . . . . . 58 5 . 105 1 57 172 Melee . | . . . . . . . . . . . . Knockbacks 1 | . . . . 1 . . . . . . . Impact 1 | . . . . 1 . . . . . . . Kinetic . | . . . . . . . . . . . . Secondary . | . . . . . . . . . . . . Self-Inflicted Damage 1029 | . . . . . 191 40 7 382 66 32 311 Shots 33 | . . . . . 8 2 1 6 3 3 10 Rammed 16 | . 1 . . . 1 . . 1 . . 13 Targets Rammed 44 | . 1 4 . 19 1 . . 1 . . 18 Kicked 28 | . . 4 . 19 . . . . . . 5 Crushed . | . . . . . . . . . . . . Highest Temperature 36 | . . . . 36 20 . 6 25 5 . . Average Temperature 13 | . . . . 18 8 . 4 13 5 . . Received Heat Transfer 1305 | . . . . 114 486 . 90 393 45 . 177 Siege Activations . | . . . . . . . . . . . . Martial Activations . | . . . . . . . . . . . . Shielding Activations . | . . . . . . . . . . . . Robots Disrupted . | . . . . . . . . . . . . Combat Hostiles . | . . . . . . . . . . . . Robots Corrupted . | . . . . . . . . . . . . Combat Hostiles . | . . . . . . . . . . . . Parts Fried . | . . . . . . . . . . . . Impact Corruptions . | . . . . . . . . . . . . Robots Melted . | . . . . . . . . . . . . Combat Hostiles . | . . . . . . . . . . . . Parts Melted 1 | . . . . . . . . . . . 1 Heat Transferred 450 | . . . . . . . . . . . 450 Parts Sabotaged . | . . . . . . . . . . . . Parts Stolen . | . . . . . . . . . . . . Parts Stripped . | . . . . . . . . . . . . Power Chain Reactions . | . . . . . . . . . . . . Alert | -11 -10 -10 -10 -9 -8 -8 -8 -7 -7 -7 -6 ------- Run | Yrd Mat Min Exi Min Mat Gar Mat Fac Low Low Fac Maximum Alert Level 1 | . . . . . 1 1 1 1 . . 1 Low Security (%) 78 | 100 100 100 . 100 89 56 50 42 . . 47 Level 1 21 | . . . . . 10 44 50 57 . . 52 Level 2 . | . . . . . . . . . . . . Level 3 . | . . . . . . . . . . . . Level 4 . | . . . . . . . . . . . . Level 5 . | . . . . . . . . . . . . High Security . | . . . . . . . . . . . . Max Security . | . . . . . . . . . . . . Peak Influence 327 | . 47 14 . 101 229 292 232 268 . . 327 Initial 142 | . . 14 . . 26 129 142 96 . . 100 Average 91 | . 14 . . 27 89 220 188 196 . . 188 Influence Increases 2063 | . 47 5 . 199 389 173 131 372 220 70 457 Destroy 0b10 Robot/C 900 | . 20 . . 120 200 80 40 120 120 60 140 Destroy 0b10 Robot/NC 95 | . . 5 . 10 35 . . 15 . . 30 Destroy Leader 154 | . . . . 20 52 10 20 10 10 10 22 Successful Hack 34 | . . . . . . . 15 5 . . 14 Select Force Hacks 30 | . . . . . . . . . . . 30 Disable Machine 270 | . 15 . . 15 . 60 . 105 . . 75 Destroy Structure 355 | . 12 . . 34 72 23 41 87 . . 86 Partial Spotted 30 | . . . . . . . . . . . 30 Lose Combat Pursuer 195 | . . . . . 30 . 15 30 90 . 30 Influence Decreases 1752 | . 10 42 . 130 259 80 210 367 314 35 305 Entered New Map 569 | . . 23 . . 43 70 150 117 82 25 59 Time Decay 903 | . 10 19 . 130 106 . 40 170 222 . 206 Lost Part 270 | . . . . . 110 10 10 80 10 10 40 Lost Ally 10 | . . . . . . . 10 . . . . Squads Dispatched 24 | . 1 . . . 9 . . 6 . . 8 Investigation 12 | . . . . . 5 . . 3 . . 4 Extermination 2 | . . . . . . . . 1 . . 1 Reinforcement 8 | . 1 . . . 2 . . 2 . . 3 Assault . | . . . . . . . . . . . . Garrison 2 | . . . . . 2 . . . . . . Intercept . | . . . . . . . . . . . . Searches Triggered . | . . . . . . . . . . . . Construction Impeded 1 | . . . . . . . . . . . 1 Haulers Reinforced 1 | . . . . . . . . . . . 1 Active Scanning Responses . | . . . . . . . . . . . . Cargo Convoy Interrupts . | . . . . . . . . . . . . Stealth | -11 -10 -10 -10 -9 -8 -8 -8 -7 -7 -7 -6 --------- Run | Yrd Mat Min Exi Min Mat Gar Mat Fac Low Low Fac Distress Signals 3 | . . . . . 3 . . . . . . Communications Jammed . | . . . . . . . . . . . . Distress Signals . | . . . . . . . . . . . . Times Spotted 93 | . 6 . . 6 21 4 10 14 9 7 16 Peak Tracking Total 8 | . 4 . . 3 7 4 8 6 6 4 5 Tactical Retreats 5 | . . . . . 1 . 1 1 1 . 1 Traps | -11 -10 -10 -10 -9 -8 -8 -8 -7 -7 -7 -6 ------- Run | Yrd Mat Min Exi Min Mat Gar Mat Fac Low Low Fac Traps Triggered 2 | . . . . . 1 . . . . . 1 Indirectly . | . . . . . . . . . . . . Trap Hack Attempts . | . . . . . . . . . . . . Triggered . | . . . . . . . . . . . . Disarmed . | . . . . . . . . . . . . Reprogrammed . | . . . . . . . . . . . . Reused . | . . . . . . . . . . . . Traps Extracted . | . . . . . . . . . . . . Installed . | . . . . . . . . . . . . Triggered . | . . . . . . . . . . . . Machines | -11 -10 -10 -10 -9 -8 -8 -8 -7 -7 -7 -6 ---------- Run | Yrd Mat Min Exi Min Mat Gar Mat Fac Low Low Fac Machines Disabled 19 | . 1 . . 1 . 4 . 7 1 . 5 Max in Single Turn 5 | . 1 . . 1 . 2 . 3 1 . 5 Machines Repaired . | . . . . . . . . . . . . Machines Dismantled . | . . . . . . . . . . . . Machines Sabotaged . | . . . . . . . . . . . . Overloaded Fab Kills . | . . . . . . . . . . . . Hacking | -11 -10 -10 -10 -9 -8 -8 -8 -7 -7 -7 -6 --------- Run | Yrd Mat Min Exi Min Mat Gar Mat Fac Low Low Fac Machines Accessed 23 | . 1 . 2 . 5 . 3 5 1 . 6 Terminals 12 | . 1 . . . 4 . 3 2 . . 2 Fabricators 1 | . . . . . . . . 1 . . . Repair Stations 2 | . . . . . . . . 1 . . 1 Recycling Units 3 | . . . . . . . . 1 . . 2 Scanalyzers 1 | . . . . . . . . . . . 1 Garrison Access 1 | . . . . . 1 . . . . . . Total Hacks 58 | . 1 . 2 . 16 . 9 11 2 . 17 Successful 27 | . 1 . 2 . 3 . 4 3 2 . 12 Failed 31 | . . . . . 13 . 5 8 . . 5 Catastrophic 8 | . . . . . 3 . 1 2 . . 2 Database Lockouts . | . . . . . . . . . . . . Manual 18 | . 1 . 1 . 4 . 7 2 2 . 1 Terminals 31 | . 1 . . . 13 . 9 4 . . 4 Fabricators 2 | . . . . . . . . 2 . . . Repair Stations 6 | . . . . . . . . 2 . . 4 Recycling Units 7 | . . . . . . . . 3 . . 4 Scanalyzers 5 | . . . . . . . . . . . 5 Garrison Access 3 | . . . . . 3 . . . . . . Terminal Hacks 12 | . 1 . 2 . 2 . 2 . 2 . 3 Record 3 | . . . 1 . . . . . 2 . . Prototype ID Bank 1 | . . . . . . . . . . . 1 Alert Level 2 | . . . . . 1 . . . . . 1 Locate Traps 2 | . . . . . . . 1 . . . 1 Patrol Status 1 | . . . . . 1 . . . . . . Zone Layout 2 | . 1 . . . . . 1 . . . . Proto ID Catalog 1 | . . . 1 . . . . . . . . Fabricator Hacks 1 | . . . . . . . . 1 . . . Build 1 | . . . . . . . . 1 . . . Repair Station Hacks 3 | . . . . . . . . 1 . . 2 Scan Component 1 | . . . . . . . . . . . 1 Repair 1 | . . . . . . . . . . . 1 Refit 1 | . . . . . . . . 1 . . . Recycling Unit Hacks 4 | . . . . . . . . 1 . . 3 Process 2 | . . . . . . . . 1 . . 1 Report Inventory 1 | . . . . . . . . . . . 1 Retrieve Matter 1 | . . . . . . . . . . . 1 Scanalyzer 3 | . . . . . . . . . . . 3 Retrieve Study 3 | . . . . . . . . . . . 3 Garrison Access Hacks 1 | . . . . . 1 . . . . . . Unlock Access 1 | . . . . . 1 . . . . . . Unauthorized Hacks 3 | . . . . . . . 2 . . . 1 Terminals 2 | . . . . . . . 2 . . . . Assimilate 2 | . . . . . . . 2 . . . . Fabricators . | . . . . . . . . . . . . Repair Stations . | . . . . . . . . . . . . Recycling Units . | . . . . . . . . . . . . Scanalyzers 1 | . . . . . . . . . . . 1 Extract 1 | . . . . . . . . . . . 1 Garrison Access . | . . . . . . . . . . . . Data Cores Recovered . | . . . . . . . . . . . . Used . | . . . . . . . . . . . . Hacking Detections 17 | . 1 . . . 5 . 2 5 . . 4 Full Trace Events 10 | . . . . . 4 . . 3 . . 3 Feedback Events 1 | . . . . . 1 . . . . . . Corruption 1 | . . . . . 1 . . . . . . Feedback Blocked . | . . . . . . . . . . . . Robot Schematics Acquired . | . . . . . . . . . . . . Robots Built . | . . . . . . . . . . . . Authchips . | . . . . . . . . . . . . Time . | . . . . . . . . . . . . Total Robot Build Rating . | . . . . . . . . . . . . Part Schematics Acquired 3 | . . . . . . . . . . . 3 Parts Built 3 | . . . . . . . . 3 . . . Authchips . | . . . . . . . . . . . . Time 47 | . . . . . . . . 47 . . . Total Part Build Rating 15 | . . . . . . . . 15 . . . Part Studies Acquired 3 | . . . . . . . . . . . 3 Parts Repaired 1 | . . . . . . . . . . . 1 Time 70 | . . . . . . . . . . . 70 Parts Recycled . | . . . . . . . . . . . . Recycled Matter 124 | . . . . . . . . 104 . . 20 Retrieved Matter 20 | . . . . . . . . . . . 20 Retrieved Components . | . . . . . . . . . . . . Parts Scanalyzed . | . . . . . . . . . . . . Part Schematics Acquired . | . . . . . . . . . . . . Parts Damaged . | . . . . . . . . . . . . Bothacking | -11 -10 -10 -10 -9 -8 -8 -8 -7 -7 -7 -6 ------------ Run | Yrd Mat Min Exi Min Mat Gar Mat Fac Low Low Fac Used RIF Installer . | . . . . . . . . . . . . Robots Hacked . | . . . . . . . . . . . . Non-combat . | . . . . . . . . . . . . Combat . | . . . . . . . . . . . . Robot Hacks Applied . | . . . . . . . . . . . . Relay Couplers Released . | . . . . . . . . . . . . Fabnet Peak Effective % . | . . . . . . . . . . . . Robots Rewired . | . . . . . . . . . . . . Allies Hacked . | . . . . . . . . . . . . Hacks Repelled . | . . . . . . . . . . . . Allies | -11 -10 -10 -10 -9 -8 -8 -8 -7 -7 -7 -6 -------- Run | Yrd Mat Min Exi Min Mat Gar Mat Fac Low Low Fac Total Allies 3 | . . 1 . . . . 2 . . . . Largest Group 1 | . . 1 . . . . 1 1 . . . Highest-Rated Group 31 | . . 31 . . . . 10 10 . . . Highest-Rated Ally 31 | . . 31 . . . . 10 10 . . . Total Orders . | . . . . . . . . . . . . Ally Attacks . | . . . . . . . . . . . . Total Damage . | . . . . . . . . . . . . Kills . | . . . . . . . . . . . . Allies Corrupted . | . . . . . . . . . . . . Allies Melted . | . . . . . . . . . . . . Intel | -11 -10 -10 -10 -9 -8 -8 -8 -7 -7 -7 -6 ------- Run | Yrd Mat Min Exi Min Mat Gar Mat Fac Low Low Fac Active Infowar (turns) . | . . . . . . . . . . . . Robot Analysis Total . | . . . . . . . . . . . . Derelict Logs Recovered . | . . . . . . . . . . . . Drone Launches . | . . . . . . . . . . . . Drone Recoveries . | . . . . . . . . . . . . Exploration | -11 -10 -10 -10 -9 -8 -8 -8 -7 -7 -7 -6 ------------- Run | Yrd Mat Min Exi Min Mat Gar Mat Fac Low Low Fac Turns Passed 3126 | 2 73 549 254 601 233 75 82 347 472 17 421 Spaces Moved 3121 | 3 63 426 211 467 178 127 147 419 520 11 549 Core 1398 | 3 42 . . . 60 70 . 269 520 11 423 Treads . | . . . . . . . . . . . . Legs 1234 | . 21 426 211 467 102 . . 1 . . 6 Wheels 16 | . . . . . 16 . . . . . . Hover . | . . . . . . . . . . . . Flight 473 | . . . . . . 57 147 149 . . 120 Fastest Speed 35 | 100 100 120 120 120 50 37 37 37 50 50 35 Average Speed 77 | 100 106 120 120 120 94 44 37 53 50 77 47 Slowest Speed 190 | 100 120 120 120 120 190 100 37 120 50 100 120 Overloaded Moves . | . . . . . . . . . . . . Propulsion Burnouts . | . . . . . . . . . . . . Robots Hopped 6 | . . . . . . . 5 . . . 1 Potential Cave-ins . | . . . . . . . . . . . . Cave-ins Triggered . | . . . . . . . . . . . . Exploration Rate (%) 37 | 1 21 78 60 85 36 33 24 14 70 3 19 Regions Visited 11 Branch Regions 5 Pre-discovered Areas 2 | . . . 1 1 . . . . . . . Known Exits Taken 1 | . . . . . 1 . . . . . . Unknown Exits Taken 9 | 1 1 1 1 1 . . 1 1 1 1 . Scrap Searched . | . . . . . . . . . . . . Spaces Dug 7 | . . . . . . . . . 7 . . Terrain Destroyed 516 | . 11 . . 39 75 21 44 90 94 25 117 Melee . | . . . . . . . . . . . . Projectile . | . . . . . . . . . . . . AOE 516 | . 11 . . 39 75 21 44 90 94 25 117 Terrain Rammed . | . . . . . . . . . . . . Walls Destroyed . | . . . . . . . . . . . . Machines Disabled . | . . . . . . . . . . . . Actions | -11 -10 -10 -10 -9 -8 -8 -8 -7 -7 -7 -6 --------- Run | Yrd Mat Min Exi Min Mat Gar Mat Fac Low Low Fac Total 3737 | 2 66 463 212 497 222 141 160 536 725 16 697 Wait 392 | . 1 23 . . . 1 10 73 195 . 89 Move 3100 | 2 62 425 210 466 178 126 137 418 519 10 547 Hop 5 | . . . . . . . 4 . . . 1 Pick Up 26 | . . . . 2 7 2 . 8 . . 7 Fast Attach 34 | . 1 3 . . 6 2 2 11 1 1 7 Attach 13 | . . . . . 2 2 . 1 3 1 4 Detach 12 | . . . . . 1 2 . 1 3 1 4 Swap 11 | . . 3 1 2 5 . . . . . . Drop 39 | . . 3 1 3 9 2 . 12 . . 9 Fire 59 | . 1 . . 5 13 4 7 11 4 3 11 Melee . | . . . . . . . . . . . . Ram 16 | . 1 . . . 1 . . 1 . . 13 Kick 28 | . . 4 . 19 . . . . . . 5 Crush . | . . . . . . . . . . . . Escape Stasis . | . . . . . . . . . . . . Rewire 2 | . . 2 . . . . . . . . . Trap . | . . . . . . . . . . . . Miscellaneous . | . . . . . . . . . . . . Route ------- -11/Scrapyard -10/Materials -10/Mines (discovered 3 exits: [*Mat x2] / *Exi) -10/Exiles -9/Mines -8/Materials -8/Garrison -8/Materials -7/Factory -7/Lower Caves -7/Lower Caves -6/Factory History --------- Turn | Location | Event 1 | -11/Scrapyard | Discovered new exit (range 1) 3 | -11/Scrapyard | Entered Materials 4 | -10/Materials | Met a group of wandering Federalists 58 | -10/Materials | Discovered new exit (range 15) 76 | -10/Materials | Entered Mines 76 | -10/Mines | Accompanied by 2 allies 137 | -10/Mines | Assembled infested the area 277 | -10/Mines | Received a Mining Laser from a helpful Derelict 315 | -10/Mines | Build established: Mutant 383 | -10/Mines | Discovered new exit (range 8) 473 | -10/Mines | Discovered new exit (range 9) 613 | -10/Mines | Discovered new exit (range 5) 625 | -10/Mines | Entered Exiles 655 | -10/Exiles | Met 8R-AWN 675 | -10/Exiles | Met EX-HEX 704 | -10/Exiles | Build established: Scavenger-Mutant 707 | -10/Exiles | Met EX-BIN 723 | -10/Exiles | Aligned with FarCom system 724 | -10/Exiles | Given EX-Vault access code 753 | -10/Exiles | Opened EX-Vault 788 | -10/Exiles | Warned to stay clear of 0b10 Research branches 825 | -10/Exiles | Met EX-DEC 831 | -10/Exiles | Learned location of Zion (-7) 865 | -10/Exiles | Discovered new exit (range 14) 879 | -10/Exiles | Entered Mines 886 | -9/Mines | Received a Rocket Launcher from a helpful Derelict 1211 | -9/Mines | Learned location of Storage (-7) 1459 | -9/Mines | Discovered new exit (range 8) 1480 | -9/Mines | Entered Materials 1480 | -8/Materials | Evolved 4 slots: Propulsion x1, Utility x3 1676 | -8/Materials | Lost 6 parts (1p2n1u2w) 1694 | -8/Materials | Core integrity fell below 50% 1713 | -8/Materials | Identified exit to Garrison 1713 | -8/Materials | Entered Garrison 1750 | -8/Garrison | Lost 6 parts (2p1n1u2w) 1784 | -8/Garrison | Discovered new exit (range 12) 1788 | -8/Garrison | Entered Materials 1843 | -8/Materials | Core integrity fell below 20% 1860 | -8/Materials | Discovered new exit (range 16) 1870 | -8/Materials | Entered Factory 1870 | -7/Factory | Accompanied by 1 ally 1870 | -7/Factory | Evolved 2 slots: Propulsion x1, Utility x1 1920 | -7/Factory | Build established: Mutant 1995 | -7/Factory | Core integrity fell below 50% 2025 | -7/Factory | Lost 6 parts (1p2n1u2w) 2048 | -7/Factory | Fabricated Imp. Concussive RPG (x3) 2138 | -7/Factory | Found Prototype Launcher 2138 | -7/Factory | Identified Rocket Array 2198 | -7/Factory | Discovered new exit (range 15) 2217 | -7/Factory | Entered Lower Caves 2300 | -7/Lower Caves | Core integrity fell below 20% 2333 | -7/Lower Caves | Encountered a Warlord checkpoint 2627 | -7/Lower Caves | Acquired the password to a Derelict Tinkerer's latest research 2665 | -7/Lower Caves | Discovered new exit (range 15) 2681 | -7/Lower Caves | Entered a destroyed Warlord outpost 2689 | -7/Lower Caves | Entered another Lower Caves area 2692 | -7/Lower Caves | Discovered new exit (range 8) 2706 | -7/Lower Caves | Entered Factory 2706 | -6/Factory | Evolved 2 slots: Propulsion x1, Weapon x1 2857 | -6/Factory | Repaired Prc. Grenade Launcher 3040 | -6/Factory | Core integrity fell below 50% 3061 | -6/Factory | Core integrity fell below 20% 3086 | -6/Factory | Found Prototype Launcher 3086 | -6/Factory | Identified Scatter Rocket Array 3127 | -6/Factory | Self-destructed Last Messages --------------- Matter ejected: 20 03074_ ALERT: Suspicious activity at Recycling Unit F007. Dispatching Investigation squad. 03086_ Acquired Prototype Launcher. 03086_ Identified Scatter Rocket Array. 03086_ Faulty integration triggers energy drain (-44). 03087_ Dropped Faulty Scatter Rocket Array. 03102_ ALERT: Suspicious intruders detected, dispatching Cutter reinforcements to area. 03117_ Connecting with Terminal... >>Traps(Locate) Found 1 trap in 1 array: 1x Alarm Trap Map updated. >>Alert(Check) Current Alert Level: 1-R 03118_ Acquired Prototype Launcher. 03118_ Identified Prc. Rocket Launcher. 03119_ Dropped Faulty Prc. Rocket Launcher. 03125_ Slammed into R-10 Processor. Map ----- +----------------------------------------------------+ | ?????????????????????????????????????????????????? | | ?????????????????????????????????????????????????? | | ?????????????????????????????????????????????????? | | ???????????????????????????????????????########### | | ???????????????????????????????????????# # | | ???????????????????????????????????????# """ """ # | | ???????????????????????????????????????# """ """ # | | ???????????????????????????????????????# """ """ # | | ????????????????????????c??????????????# + | | ???????????????????????c???????????????# # | | ????????????????????????????????????#+## # | | ??????????????????????????????^?????+ + """T""" # | | ????????????????????????????????????# ############ | | ????????????????????????????????????# #??????# | | ???????????????????????????????#????# #??????# """ | | ???????????????????????????????# ??# #??????# """ | | ???????????????????????????????# # #??????# """ | | ???????????????????????????????# + #??????# | | ???????????????????????????????# # #??????# """ | | ???????????????????????????????# ??# #??????# """ | | ???????????????????????????????#????# #??????# """ | | ????????????????????????????????????# #??????# | | ?????????????????????###+############ ##+########+ | | ?????????????######### | | ??????????R s ] Y ####+### | | ?????????? s @R# # | | ?????????? s #] ] T + | | ????????????########## # # | | ?????????????????????## ## ]]] # ########## | | ??????????????????????# ## ]]] + +????????# | | ??????????????????????# ## ]] ### ##????????# | | ??????????????????????# #########?# #?????????# | | ??????????????????????# #?????????# #?????????+ | | ??????????????????????# #?????????# #?????????# | | ??????????????????????# ??????????#+#?????????# | | ??????????????????????# ??????????????????????# | | ??????????????????????# ???????????????????????? | | ??????????????????????# ???????????g???????????? | | ??????????????????????# ???????????????????????? | | ??????????????????????# ???????????????????????? | | ??????????????????????? ???????????????????????? | | ?????????????????????????????????????????????????? | | ?????????????????????o???????????????????????????? | | ?????????????????????????????????????????????????? | | ?????????????????????????????????????????????????? | | ?????????????????????????????????????????????????? | | ?????????????????????????????????????????????????? | | ?????????????????????????????????????????????????? | | ?????????????????????????????????????????????????? | | ?????????????????????????????????????????????????? | +----------------------------------------------------+ Best States ------------- Heat Dissipation 37 Energy Generation 14 Energy Capacity 265 Matter Stores 300 Matter Capacity 400 Sight Range 16 Terrain Scan Density 10 Armor Coverage 150 Resistance: EX 25 Evasion (%) 63 Item Schematics ----------------- Adv. Terrain Scan Processor | -6/Factory | Extracted Actuator Array | -6/Factory | Extracted Lgt. Fission Core | -6/Factory | Extracted Robot Schematics ------------------ None Fabricated ------------ Imp. Concussive RPG | x3 | -7/Factory | Preloaded Repaired ---------- Prc. Grenade Launcher | 34% | -6/Factory Studied --------- Lrn. Missile Launcher | -6/Factory | Hacked Hvy. Missile Launcher | -6/Factory | Hacked Hvy. Rocket Launcher | -6/Factory | Hacked Alien Tech Used ----------------- None Achievements -------------- None Challenges ------------ None Game ------ Seed UtilityDeflectorWarhead Manual? 0 Play Time 00:26:16 Cumulative 1280.5 hours Start 2026.03.21 @ 22:12:09 End 2026.03.21 @ 22:35:39 Sessions 1 Manual Loads 0 Difficulty Rogue Special Mode AFD2018/Launchers Game No. 1570 Rogue 1286 Adventurer 124 Explorer 160 Win Type - Total 63 Types 49/0/8/4/1/0/0/1/0/0 Lore% 93 Gallery% 83 Achievement% 69 Wizard Run 0 Options --------- Layout 0 ASCII 0 Keyboard 1 Movement Numpad Keybinds 0 Fullscreen 2 Font 18/X11 Map View 76x50 Zoom Use 2% Tactical HUD 1 Map Filters NONE Filters NONE Steam 1 RUN: 2ec12faf-848d-46bd-91e6-9a4b409a197b